[Event "27th CRO-chT 1A-Men 2018"]
[Site "Biograd"]
[Date "2018.09.12"]
[Round "4.6"]
[White "Vargic, Drago"]
[Black "Muse, Mladen"]
[Result "1/2-1/2"]
[ECO "B08"]
[WhiteElo "2286"]
[BlackElo "2400"]
[Annotator "ChessBase"]
[PlyCount "82"]
[EventDate "2018.09.08"]
[EventType "team-tourn"]
[EventCountry "CRO"]
[SourceTitle "playchess.com"]
[Source "ChessBase"]
[SourceQuality "1"]
[TimeControl "40/5400+30:1800+30"]

1. e4 {[%emt 0:01:30]} g6 {[%emt 0:00:30]} 2. d4 {[%emt 0:00:30]} Bg7 {[%emt 0:00:00]} 3. Nc3 {[%emt 0:01:30]} d6 {[%emt 0:00:00]} 4. Nf3 {[%emt 0:02:30]} Nf6 {[%emt 0:06:30]} 5. Bf4 {[%emt 0:03:30]} O-O {[%emt 0:13:30]} 6. Qd2 {[%emt 0:01:30]} Nc6 {[%emt 0:06:30]} 7. O-O-O {[%emt 0:01:30]} Bg4 {[%emt 0:01:30]} 8. Be2 {[%emt 0:02:30]} Nd7 {[%emt 0:15:30]} 9. Bh6 {[%emt 0:11:30]} Bxf3 {[%emt 0:08:30]} 10. Bxf3 {[%emt 0:05:30]} e6 {[%emt 0:12:30]} 11. h4 {[%emt 0:04:30]} Bxd4 {[%emt 0:10:30]} 12. Bxf8 {[%emt 0:02:30]} Nxf8 {[%emt 0:02:22]} 13. Rdf1 {[%emt 0:01:30]} Bg7 {[%emt 0:07:16]} 14. g4 {[%emt 0:03:30]} Nd4 {[%emt 0:02:21]} 15. Bd1 {[%emt 0:02:30]} b5 {[%emt 0:01:36]} 16. f4 {[%emt 0:02:30]} b4 {[%emt 0:02:43]} 17. Ne2 {[%emt 0:00:30]} c5 {[%emt 0:00:32]} 18. Nxd4 {[%emt 0:01:30]} Bxd4 {[%emt 0:00:20]} 19. Rh3 {[%emt 0:03:30]} Bg7 {[%emt 0:01:35]} 20. g5 {[%emt 0:00:30]} c4 {[%emt 0:02:48]} 21. Qe2 {[%emt 0:05:30]} d5 {[%emt 0:01:38]} 22. f5 {[%emt 0:00:30]} exf5 {[%emt 0:00:18]} 23. exf5 {[%emt 0:01:30]} gxf5 {[%emt 0:00:30]} 24. Rxf5 {[%emt 0:00:30]} Ne6 {[%emt 0:00:26]} 25. Qf1 {[%emt 0:01:30]} Qd6 {[%emt 0:00:59]} 26. Bh5 {[%emt 0:00:30]} Nd4 {[%emt 0:01:25]} 27. Bxf7+ {[%emt 0:02:30]} Kh8 {[%emt 0:00:04]} 28. h5 {[%emt 0:01:30]} Nxf5 {[%emt 0:00:30]} 29. Qxf5 {[%emt 0:01:30]} Qe5 {[%emt 0:00:44]} 30. Qxe5 {[%emt 0:02:30]} Bxe5 {[%emt 0:00:04]} 31. c3 {[%emt 0:00:30]} bxc3 {[%emt 0:00:19]} 32. bxc3 {[%emt 0:00:30]} Bf4+ {[%emt 0:00:10]} 33. Kc2 {[%emt 0:00:00]} Bxg5 {[%emt 0:00:37]} 34. Bxd5 {[%emt 0:00:00]} Rc8 {[%emt 0:00:40]} 35. Rg3 {[%emt 0:01:30]} h6 {[%emt 0:00:23]} 36. Rg4 {[%emt 0:00:00]} Rc5 {[%emt 0:00:17]} 37. Bxc4 {[%emt 0:03:00]} Bf6 {[%emt 0:00:22]} 38. Rg8+ {[%emt 0:05:30]} Kh7 {[%emt 0:00:37]} 39. Rg6 {[%emt 0:00:00]} Bg7 {[%emt 0:00:34]} 40. Bd3 {[%emt 0:00:00]} Kg8 {[%emt 0:00:00]} 41. c4 {[%emt 0:13:30]} Rxh5 {[%emt 0:02:50]} 1/2-1/2

[Event "27th CRO-chT 1A-Men 2018"]
[Site "Biograd"]
[Date "2018.09.12"]
[Round "4.22"]
[White "Bender, Ivan"]
[Black "Mrkonjic, Nenad"]
[Result "1/2-1/2"]
[ECO "B04"]
[WhiteElo "2261"]
[BlackElo "2352"]
[Annotator "ChessBase"]
[PlyCount "162"]
[EventDate "2018.09.08"]
[EventType "team-tourn"]
[EventCountry "CRO"]
[SourceTitle "playchess.com"]
[Source "ChessBase"]
[SourceQuality "1"]
[TimeControl "40/5400+30:1800+30"]

1. e4 {[%emt 0:05:30]} Nf6 {[%emt 0:00:30]} 2. e5 {[%emt 0:00:00]} Nd5 {[%emt 0:00:00]} 3. d4 {[%emt 0:00:00]} d6 {[%emt 0:00:00]} 4. Nf3 {[%emt 0:00:30]} dxe5 {[%emt 0:01:30]} 5. Nxe5 {[%emt 0:00:00]} c6 {[%emt 0:00:00]} 6. Be2 {[%emt 0:03:00]} Nd7 {[%emt 0:00:00]} 7. Nf3 {[%emt 0:00:30]} N7f6 {[%emt 0:00:30]} 8. h3 {[%emt 0:00:30]} Bf5 {[%emt 0:00:30]} 9. O-O {[%emt 0:00:00]} h6 {[%emt 0:05:30]} 10. Na3 {[%emt 0:11:00]} e6 {[%emt 0:00:30]} 11. Nc4 {[%emt 0:00:30]} Be7 {[%emt 0:00:30]} 12. c3 {[%emt 0:00:30]} O-O {[%emt 0:00:30]} 13. a4 {[%emt 0:00:00]} a5 {[%emt 0:05:30]} 14. Re1 {[%emt 0:01:00]} Qc7 {[%emt 0:00:30]} 15. Bf1 {[%emt 0:00:30]} Rfd8 {[%emt 0:08:30]} 16. Nfe5 {[%emt 0:08:30]} b5 {[%emt 0:08:30]} 17. Nd2 {[%emt 0:11:30]} bxa4 {[%emt 0:12:30]} 18. Qxa4 {[%emt 0:02:30]} Rdc8 {[%emt 0:00:00]} 19. Nd3 {[%emt 0:09:30]} Qd8 {[%emt 0:13:00]} 20. Nf3 {[%emt 0:07:30]} Nd7 {[%emt 0:00:00]} 21. Nfe5 {[%emt 0:07:30]} Nxe5 {[%emt 0:00:00]} 22. Nxe5 {[%emt 0:00:30]} Qc7 {[%emt 0:00:30]} 23. Nd3 {[%emt 0:00:30]} Rd8 {[%emt 0:01:30]} 24. Ne5 {[%emt 0:10:30]} Rdc8 {[%emt 0:02:30]} 25. Nd3 {[%emt 0:03:29]} Qb6 {[%emt 0:01:30]} 26. Qd1 {[%emt 0:03:27]} Rd8 {[%emt 0:00:30]} 27. Ra4 {[%emt 0:10:00]} Qc7 {[%emt 0:02:30]} 28. Qf3 {[%emt 0:01:31]} Bd6 {[%emt 0:01:30]} 29. Nc5 {[%emt 0:02:55]} Be7 {[%emt 0:10:30]} 30. Ra1 {[%emt 0:00:12]} Bg6 {[%emt 0:05:30]} 31. Na4 {[%emt 0:00:07]} Nb6 {[%emt 0:00:30]} 32. Bf4 {[%emt 0:00:09]} Qb7 {[%emt 0:01:00]} 33. Nxb6 {[%emt 0:02:11]} Qxb6 {[%emt 0:00:04]} 34. Ra2 {[%emt 0:00:26]} a4 {[%emt 0:00:54]} 35. Bd3 {[%emt 0:00:17]} Bxd3 {[%emt 0:01:30]} 36. Qxd3 {[%emt 0:00:39]} c5 {[%emt 0:00:30]} 37. Be3 {[%emt 0:00:00]} Qb3 {[%emt 0:04:23]} 38. Raa1 {[%emt 0:00:00]} cxd4 {[%emt 0:00:30]} 39. Bxd4 {[%emt 0:00:00]} Bf6 {[%emt 0:00:30]} 40. Qd1 {[%emt 0:00:00]} Qc4 {[%emt 0:00:00]} 41. Qe2 {[%emt 0:08:07]} Qxe2 {[%emt 0:04:39]} 42. Rxe2 {[%emt 0:00:00]} Bxd4 {[%emt 0:00:30]} 43. cxd4 {[%emt 0:00:00]} Rdb8 {[%emt 0:05:30]} 44. Rd2 {[%emt 0:12:34]} Rb4 {[%emt 0:00:30]} 45. Kf1 {[%emt 0:02:21]} Rd8 {[%emt 0:00:30]} 46. Rad1 {[%emt 0:00:11]} Rdb8 {[%emt 0:00:30]} 47. Ra1 {[%emt 0:00:17]} Kf8 {[%emt 0:01:30]} 48. d5 {[%emt 0:03:31]} e5 {[%emt 0:02:30]} 49. d6 {[%emt 0:00:08]} Ke8 {[%emt 0:00:00]} 50. Rc1 {[%emt 0:03:05]} Rd4 {[%emt 0:02:00]} 51. Rxd4 {[%emt 0:03:12]} exd4 {[%emt 0:00:00]} 52. Rc4 {[%emt 0:00:41]} d3 {[%emt 0:00:00]} 53. Rxa4 {[%emt 0:00:08]} Rxb2 {[%emt 0:00:30]} 54. Ra1 {[%emt 0:02:31]} Kd7 {[%emt 0:00:30]} 55. Rd1 {[%emt 0:00:01]} Rb3 {[%emt 0:00:30]} 56. Ke1 {[%emt 0:00:07]} f5 {[%emt 0:00:30]} 57. Kd2 {[%emt 0:01:07]} f4 {[%emt 0:00:00]} 58. g3 {[%emt 0:00:16]} Kxd6 {[%emt 0:03:00]} 59. gxf4 {[%emt 0:00:10]} Kd5 {[%emt 0:00:30]} 60. Rg1 {[%emt 0:00:47]} Ke4 {[%emt 0:00:30]} 61. Rxg7 {[%emt 0:00:24]} Rb2+ {[%emt 0:00:30]} 62. Kd1 {[%emt 0:01:47]} Rxf2 {[%emt 0:00:30]} 63. Re7+ {[%emt 0:02:04]} Kxf4 {[%emt 0:00:30]} 64. Rd7 {[%emt 0:00:36]} Rf3 {[%emt 0:00:30]} 65. h4 {[%emt 0:00:30]} Rh3 {[%emt 0:04:30]} 66. Kd2 {[%emt 0:00:28]} Ke4 {[%emt 0:00:30]} 67. Re7+ {[%emt 0:00:08]} Kf5 {[%emt 0:00:30]} 68. Re3 {[%emt 0:00:54]} Rxh4 {[%emt 0:00:30]} 69. Kxd3 {[%emt 0:00:30]} Rh2 {[%emt 0:01:30]} 70. Re2 {[%emt 0:00:13]} Rh3+ {[%emt 0:00:30]} 71. Kd2 {[%emt 0:00:01]} Kf4 {[%emt 0:01:30]} 72. Rf2+ {[%emt 0:01:14]} Kg4 {[%emt 0:01:30]} 73. Ke2 {[%emt 0:00:19]} Ra3 {[%emt 0:00:30]} 74. Kf1 {[%emt 0:00:40]} Kg3 {[%emt 0:00:00]} 75. Kg1 {[%emt 0:00:17]} Ra1+ {[%emt 0:02:00]} 76. Rf1 {[%emt 0:00:01]} Ra2 {[%emt 0:00:30]} 77. Rb1 {[%emt 0:00:12]} Ra3 {[%emt 0:00:30]} 78. Kh1 {[%emt 0:00:32]} h5 {[%emt 0:00:00]} 79. Rc1 {[%emt 0:00:06]} h4 {[%emt 0:00:00]} 80. Rb1 {[%emt 0:00:07]} h3 {[%emt 0:02:30]} 81. Rc1 {[%emt 0:00:58]} h2 {[%emt 0:00:30]} 1/2-1/2

[Event "27th CRO-chT 1A-Men 2018"]
[Site "Biograd"]
[Date "2018.09.12"]
[Round "4.23"]
[White "Feletar, Darko"]
[Black "Brnas, Augustin"]
[Result "1/2-1/2"]
[ECO "D06"]
[WhiteElo "2364"]
[BlackElo "2190"]
[Annotator "ChessBase"]
[PlyCount "89"]
[EventDate "2018.09.08"]
[EventType "team-tourn"]
[EventCountry "CRO"]
[SourceTitle "playchess.com"]
[Source "ChessBase"]
[SourceQuality "1"]
[TimeControl "40/5400+30:1800+30"]

1. Nf3 {[%emt 0:04:30]} Nf6 {[%emt 0:03:30]} 2. c4 {[%emt 0:00:30]} d5 {[%emt 0:09:30]} 3. cxd5 {[%emt 0:00:30]} Qxd5 {[%emt 0:01:30]} 4. Nc3 {[%emt 0:02:30]} Qa5 {[%emt 0:06:30]} 5. d4 {[%emt 0:10:30]} Ne4 {[%emt 0:05:30]} 6. Qb3 {[%emt 0:08:30]} e6 {[%emt 0:06:30]} 7. a3 {[%emt 0:10:30]} Nc6 {[%emt 0:07:30]} 8. Qc2 {[%emt 0:07:30]} Bb4 {[%emt 0:06:30]} 9. axb4 {[%emt 0:14:30]} Qxa1 {[%emt 0:00:00]} 10. Nxe4 {[%emt 0:00:30]} Nxb4 {[%emt 0:00:00]} 11. Qd1 {[%emt 0:02:30]} Na2 {[%emt 0:02:30]} 12. Kd2 {[%emt 0:03:30]} b6 {[%emt 0:02:30]} 13. Nc3 {[%emt 0:01:30]} Bd7 {[%emt 0:01:30]} 14. Qc2 {[%emt 0:03:30]} Nb4 {[%emt 0:00:30]} 15. Qb3 {[%emt 0:00:30]} c5 {[%emt 0:00:30]} 16. e3 {[%emt 0:00:30]} Qa5 {[%emt 0:01:30]} 17. Qa3 {[%emt 0:02:30]} cxd4 {[%emt 0:00:30]} 18. exd4 {[%emt 0:00:30]} Nc6 {[%emt 0:02:30]} 19. Qxa5 {[%emt 0:01:30]} Nxa5 {[%emt 0:00:00]} 20. Kc2 {[%emt 0:02:30]} Rc8 {[%emt 0:01:00]} 21. Ba6 {[%emt 0:00:30]} Rd8 {[%emt 0:00:30]} 22. Be3 {[%emt 0:02:06]} f6 {[%emt 0:00:30]} 23. Ra1 {[%emt 0:04:51]} Kf7 {[%emt 0:00:30]} 24. Bb5 {[%emt 0:01:21]} Bxb5 {[%emt 0:01:30]} 25. Nxb5 {[%emt 0:00:06]} Rd7 {[%emt 0:00:30]} 26. Nc3 {[%emt 0:03:48]} Rc8 {[%emt 0:00:30]} 27. Ra4 {[%emt 0:01:29]} g5 {[%emt 0:00:30]} 28. h3 {[%emt 0:00:11]} h5 {[%emt 0:00:30]} 29. Bxg5 {[%emt 0:02:52]} fxg5 {[%emt 0:00:00]} 30. Ne5+ {[%emt 0:00:04]} Ke7 {[%emt 0:00:00]} 31. Nxd7 {[%emt 0:00:07]} Kxd7 {[%emt 0:00:30]} 32. Kd3 {[%emt 0:00:11]} Rf8 {[%emt 0:02:30]} 33. Ke3 {[%emt 0:00:52]} Rf5 {[%emt 0:01:30]} 34. f3 {[%emt 0:00:38]} Kc6 {[%emt 0:00:30]} 35. g4 {[%emt 0:01:36]} hxg4 {[%emt 0:00:30]} 36. hxg4 {[%emt 0:00:05]} Rf7 {[%emt 0:01:30]} 37. Ne4 {[%emt 0:00:18]} Rg7 {[%emt 0:00:30]} 38. Kd3 {[%emt 0:00:48]} Kd5 {[%emt 0:00:30]} 39. Ra1 {[%emt 0:05:04]} e5 {[%emt 0:00:30]} 40. Rh1 {[%emt 0:01:34]} exd4 {[%emt 0:00:00]} 41. Rh5 {[%emt 0:03:59]} Nc4 {[%emt 0:03:00]} 42. Nf6+ {[%emt 0:03:30]} Kc5 {[%emt 0:03:30]} 43. Ne4+ {[%emt 0:00:00]} Kd5 {[%emt 0:00:30]} 44. Nf6+ {[%emt 0:03:00]} Kc5 {[%emt 0:02:30]} 45. Ne4+ {[%emt 0:00:30]} 1/2-1/2